[Event "POL-chT 2 Liga 2019"]
[Site "Poronin"]
[Date "2019.09.15"]
[Round "9.3"]
[White "Janaszak, Dawid"]
[Black "Licznerski, Lukasz"]
[Result "1/2-1/2"]
[ECO "B17"]
[WhiteElo "2351"]
[BlackElo "2356"]
[Annotator "ChessBase"]
[PlyCount "26"]
[EventDate "2019.09.07"]
[EventType "team-tourn"]
[EventCountry "POL"]
[SourceTitle "playchess.com"]
[Source "ChessBase"]
[SourceQuality "1"]
[TimeControl "40/5400+30:1800+30"]

1. e4 {[%emt 0:00:00]} c6 {[%emt 0:01:24]} 2. d4 {[%emt 0:00:00]} d5 {[%emt 0:00:02]} 3. Nc3 {[%emt 0:00:00]} dxe4 {[%emt 0:00:07]} 4. Nxe4 {[%emt 0:00:00]} Nd7 {[%emt 0:00:04]} 5. Nf3 {[%emt 0:00:33]} Ngf6 {[%emt 0:00:11]} 6. Nxf6+ {[%emt 0:00:09]} Nxf6 {[%emt 0:00:03]} 7. c3 {[%emt 0:00:22]} Bg4 {[%emt 0:01:15]} 8. h3 {[%emt 0:01:21]} Bh5 {[%emt 0:04:20]} 9. Be2 {[%emt 0:00:08]} e6 {[%emt 0:00:03]} 10. Qb3 {[%emt 0:00:20]} Qb6 {[%emt 0:00:25]} 11. O-O {[%emt 0:00:15]} Bd6 {[%emt 0:00:23]} 12. Re1 {[%emt 0:00:43]} O-O {[%emt 0:00:12]} 13. Be3 {[%emt 0:00:31]} Nd5 {[%emt 0:00:21]} 1/2-1/2

[Event "POL-chT 2 Liga 2019"]
[Site "Poronin"]
[Date "2019.09.15"]
[Round "9.4"]
[White "Punin, Andrii"]
[Black "Malovanyi, Yulian"]
[Result "1/2-1/2"]
[ECO "B30"]
[WhiteElo "2325"]
[BlackElo "2320"]
[Annotator "ChessBase"]
[PlyCount "20"]
[EventDate "2019.09.07"]
[EventType "team-tourn"]
[EventCountry "POL"]
[SourceTitle "playchess.com"]
[Source "ChessBase"]
[SourceQuality "1"]
[TimeControl "40/5400+30:1800+30"]

1. e4 {[%emt 0:09:11]} c5 {[%emt 0:00:00]} 2. Nf3 {[%emt 0:00:08]} Nc6 {[%emt 0:00:00]} 3. Bb5 {[%emt 0:00:06]} d6 {[%emt 0:00:07]} 4. O-O {[%emt 0:00:09]} Bd7 {[%emt 0:00:18]} 5. Re1 {[%emt 0:00:34]} Nf6 {[%emt 0:00:09]} 6. c3 {[%emt 0:00:11]} a6 {[%emt 0:00:08]} 7. Bf1 {[%emt 0:00:09]} Bg4 {[%emt 0:00:09]} 8. h3 {[%emt 0:00:11]} Bxf3 {[%emt 0:00:14]} 9. Qxf3 {[%emt 0:00:07]} g6 {[%emt 0:00:53]} 10. d3 {[%emt 0:00:09]} Bg7 {[%emt 0:00:11]} 1/2-1/2

[Event "POL-chT 2 Liga 2019"]
[Site "Poronin"]
[Date "2019.09.15"]
[Round "9.7"]
[White "Pakleza, Zbigniew"]
[Black "Lewicki, Miroslaw"]
[Result "1-0"]
[ECO "B22"]
[WhiteElo "2491"]
[BlackElo "2351"]
[Annotator "ChessBase"]
[PlyCount "87"]
[EventDate "2019.09.07"]
[EventType "team-tourn"]
[EventCountry "POL"]
[SourceTitle "playchess.com"]
[Source "ChessBase"]
[SourceQuality "1"]
[TimeControl "40/5400+30:1800+30"]

1. e4 {[%emt 0:00:00]} c5 {[%emt 0:00:02]} 2. c3 {[%emt 0:00:00]} d6 3. d4 {[%emt 0:00:00]} cxd4 {[%emt 0:00:54]} 4. cxd4 {[%emt 0:00:00]} g6 {[%emt 0:00:20]} 5. Nc3 {[%emt 0:02:30]} Bg7 {[%emt 0:02:57]} 6. Be3 {[%emt 0:02:16]} Nf6 {[%emt 0:03:12]} 7. f3 {[%emt 0:02:28]} O-O {[%emt 0:01:41]} 8. Bd3 {[%emt 0:02:36]} Nc6 {[%emt 0:03:31]} 9. Nge2 {[%emt 0:00:09]} d5 {[%emt 0:00:47]} 10. e5 {[%emt 0:01:09]} Ne8 {[%emt 0:00:05]} 11. f4 {[%emt 0:05:30]} Nc7 {[%emt 0:04:35]} 12. O-O {[%emt 0:04:21]} f6 {[%emt 0:05:34]} 13. Qd2 {[%emt 0:08:54]} Bf5 {[%emt 0:04:06]} 14. Bxf5 {[%emt 0:00:52]} gxf5 {[%emt 0:00:04]} 15. Ng3 {[%emt 0:08:19]} e6 {[%emt 0:00:15]} 16. Nh5 {[%emt 0:05:05]} Qe8 {[%emt 0:04:02]} 17. Qe2 {[%emt 0:03:38]} Kh8 {[%emt 0:06:00]} 18. Rac1 {[%emt 0:06:20]} Rc8 {[%emt 0:00:45]} 19. b3 {[%emt 0:02:10]} Qf7 {[%emt 0:10:47]} 20. Na4 {[%emt 0:05:15]} Rg8 {[%emt 0:04:02]} 21. Nc5 {[%emt 0:09:39]} Ne8 {[%emt 0:01:43]} 22. Nxg7 {[%emt 0:07:09]} Rxg7 {[%emt 0:02:13]} 23. Nd3 {[%emt 0:02:24]} Qg8 {[%emt 0:05:56]} 24. Rc2 {[%emt 0:04:31]} Rcc7 {[%emt 0:05:22]} 25. Rfc1 {[%emt 0:01:19]} fxe5 {[%emt 0:06:13]} 26. fxe5 {[%emt 0:00:14]} Rg4 {[%emt 0:00:32]} 27. Qf2 {[%emt 0:03:10]} f4 {[%emt 0:07:36]} 28. Nxf4 {[%emt 0:03:17]} Rf7 {[%emt 0:00:07]} 29. h3 {[%emt 0:00:32]} Rg3 {[%emt 0:01:43]} 30. Rf1 {[%emt 0:01:54]} Ne7 {[%emt 0:02:18]} 31. Ng6+ {[%emt 0:03:59]} Qxg6 {[%emt 0:00:12]} 32. Qxf7 {[%emt 0:00:02]} Qxc2 {[%emt 0:00:13]} 33. Bf2 {[%emt 0:00:06]} Rg8 {[%emt 0:01:04]} 34. Qxe7 {[%emt 0:00:11]} Qxa2 {[%emt 0:00:10]} 35. Qxe6 {[%emt 0:02:06]} Qxb3 {[%emt 0:00:57]} 36. Re1 {[%emt 0:04:14]} Ng7 {[%emt 0:04:43]} 37. Qf7 {[%emt 0:00:32]} a5 {[%emt 0:04:32]} 38. Bh4 {[%emt 0:00:56]} a4 {[%emt 0:01:22]} 39. Bf6 {[%emt 0:00:42]} Qb4 {[%emt 0:00:15]} 40. Rc1 {[%emt 0:00:00]} Qf8 {[%emt 0:00:00]} 41. Qxf8 {[%emt 0:05:19]} Rxf8 {[%emt 0:03:51]} 42. Rc7 {[%emt 0:00:08]} Rg8 {[%emt 0:00:04]} 43. e6 {[%emt 0:01:18]} a3 {[%emt 0:02:05]} 44. Rxg7 {[%emt 0:00:23]} 1-0

[Event "POL-chT 2 Liga 2019"]
[Site "Poronin"]
[Date "2019.09.15"]
[Round "9.8"]
[White "Kozak, Antoni"]
[Black "Jakubiec, Artur"]
[Result "0-1"]
[ECO "E70"]
[WhiteElo "2341"]
[BlackElo "2472"]
[Annotator "ChessBase"]
[PlyCount "60"]
[EventDate "2019.09.07"]
[EventType "team-tourn"]
[EventCountry "POL"]
[SourceTitle "playchess.com"]
[Source "ChessBase"]
[SourceQuality "1"]
[TimeControl "40/5400+30:1800+30"]

1. d4 {[%emt 0:00:00]} Nf6 {[%emt 0:00:18]} 2. c4 {[%emt 0:00:00]} g6 {[%emt 0:01:06]} 3. Nc3 {[%emt 0:00:01]} Bg7 {[%emt 0:00:11]} 4. e4 {[%emt 0:00:04]} O-O {[%emt 0:01:16]} 5. Nf3 {[%emt 0:00:05]} d6 {[%emt 0:00:45]} 6. h3 {[%emt 0:00:04]} c5 {[%emt 0:05:01]} 7. d5 {[%emt 0:00:50]} a6 {[%emt 0:05:29]} 8. a4 {[%emt 0:08:01]} e6 {[%emt 0:03:55]} 9. Bd3 {[%emt 0:00:05]} b6 {[%emt 0:01:21]} 10. O-O {[%emt 0:00:38]} Ra7 {[%emt 0:02:01]} 11. Nh2 {[%emt 0:07:16]} e5 {[%emt 0:00:46]} 12. Ng4 {[%emt 0:00:13]} h5 {[%emt 0:04:08]} 13. Nh2 {[%emt 0:04:37]} Nh7 {[%emt 0:00:44]} 14. a5 {[%emt 0:15:00]} bxa5 {[%emt 0:01:23]} 15. Qa4 f5 {[%emt 0:02:28]} 16. Qxa5 {[%emt 0:01:48]} Qe7 {[%emt 0:03:47]} 17. f3 {[%emt 0:13:37]} Rb7 {[%emt 0:08:57]} 18. Na4 {[%emt 0:03:04]} f4 {[%emt 0:17:21]} 19. Nb6 {[%emt 0:01:04]} Bxh3 {[%emt 0:00:25]} 20. gxh3 {[%emt 0:00:12]} Qd8 {[%emt 0:01:02]} 21. Na8 {[%emt 0:04:38]} Qc8 {[%emt 0:01:18]} 22. Bd2 {[%emt 0:03:55]} Bf6 {[%emt 0:04:05]} 23. Nb6 {[%emt 0:04:01]} Qxh3 {[%emt 0:00:25]} 24. Na4 {[%emt 0:00:02]} Bh4 {[%emt 0:05:28]} 25. Be1 {[%emt 0:00:06]} Bg3 {[%emt 0:03:23]} 26. Qd2 {[%emt 0:00:04]} g5 {[%emt 0:01:45]} 27. Qg2 {[%emt 0:07:06]} Qh4 {[%emt 0:00:05]} 28. b4 {[%emt 0:08:18]} Bxe1 {[%emt 0:04:49]} 29. Rfxe1 {[%emt 0:00:04]} Rxb4 {[%emt 0:00:09]} 30. Bf1 {[%emt 0:00:27]} Rxa4 {[%emt 0:01:01]} 0-1

[Event "POL-chT 2 Liga 2019"]
[Site "Poronin"]
[Date "2019.09.15"]
[Round "9.9"]
[White "Tymrakiewicz, Rafal"]
[Black "Mis, Mieszko"]
[Result "0-1"]
[ECO "B13"]
[WhiteElo "2257"]
[BlackElo "2320"]
[Annotator "NA"]
[PlyCount "90"]
[EventDate "2019.09.07"]
[EventType "team-tourn"]
[EventCountry "POL"]
[SourceTitle "playchess.com"]
[Source "ChessBase"]
[SourceQuality "1"]
[TimeControl "40/5400+30:1800+30"]

1. e4 {[%emt 0:04:55]} c6 {[%emt 0:00:59]} 2. d4 {[%emt 0:04:36]} d5 {[%emt 0:00:05]} 3. exd5 {[%emt 0:01:02]} cxd5 {[%emt 0:00:06]} 4. c3 {[%emt 0:04:06]} Nc6 {[%emt 0:01:41]} 5. Bf4 {[%emt 0:02:04]} g6 {[%emt 0:02:23]} 6. Nf3 {[%emt 0:03:31]} Bg7 {[%emt 0:00:50]} 7. Nbd2 {[%emt 0:00:15]} Nh6 {[%emt 0:07:35]} 8. Be2 {[%emt 0:09:44]} Nf5 {[%emt 0:04:37]} 9. Qb3 {[%emt 0:21:25]} O-O {[%emt 0:02:33]} 10. h4 {[%emt 0:03:47]} h5 {[%emt 0:10:17]} 11. Nf1 {[%emt 0:08:49]} Re8 {[%emt 0:05:13]} 12. O-O-O $11 {[%emt 0:10:14]} a6 {[%emt 0:04:33]} 13. Ne3 {[%emt 0:04:48]} Nxe3 {[%emt 0:01:06]} 14. fxe3 Bf5 {[%emt 0:20:23]} 15. Bd3 {[%emt 0:07:38]} Bxd3 {[%emt 0:08:11]} 16. Rxd3 {[%emt 0:00:02]} Qd7 {[%emt 0:00:16]} 17. Rf1 {[%emt 0:03:20]} b5 {[%emt 0:01:36]} 18. Kb1 {[%emt 0:05:20]} Rac8 {[%emt 0:00:42]} 19. Ka1 {[%emt 0:01:20]} Na5 {[%emt 0:03:01]} 20. Qd1 {[%emt 0:00:10]} Nc4 {[%emt 0:00:29]} 21. Ne5 {[%emt 0:01:16]} Qe6 {[%emt 0:03:04]} 22. g4 {[%emt 0:01:29]} f6 {[%emt 0:10:29]} 23. Nxg6 {[%emt 0:00:24]} Qxg4 {[%emt 0:00:02]} 24. Qxg4 {[%emt 0:01:10]} hxg4 {[%emt 0:00:03]} 25. h5 {[%emt 0:00:01]} Kh7 {[%emt 0:02:20]} 26. Rg1 {[%emt 0:00:54]} f5 {[%emt 0:00:39]} 27. b3 {[%emt 0:00:08]} Nb6 {[%emt 0:00:18]} 28. Ne5 {[%emt 0:00:15]} Bxe5 {[%emt 0:00:48]} 29. dxe5 {[%emt 0:00:32]} e6 {[%emt 0:00:19]} 30. Kb2 {[%emt 0:00:14]} Nd7 {[%emt 0:00:38]} 31. Rd4 {[%emt 0:01:28]} Nc5 {[%emt 0:02:24]} 32. Rc1 {[%emt 0:00:02]} Rg8 {[%emt 0:02:06]} 33. Ka3 {[%emt 0:00:35]} Ne4 {[%emt 0:00:57]} 34. c4 {[%emt 0:00:14]} bxc4 {[%emt 0:01:25]} 35. bxc4 {[%emt 0:00:01]} g3 {[%emt 0:01:04]} 36. Rg1 {[%emt 0:00:38]} Rxc4 {[%emt 0:00:25]} 37. Rd3 {[%emt 0:01:07]} g2 {[%emt 0:00:33]} 38. Rb3 {[%emt 0:00:12]} Rc3 {[%emt 0:00:19]} 39. Kb4 {[%emt 0:00:35]} Rxb3+ {[%emt 0:00:05]} 40. axb3 {[%emt 0:00:00]} Nd2 {[%emt 0:00:00]} 41. e4 {[%emt 0:02:00]} Nf3 {[%emt 0:00:20]} 42. Be3 {[%emt 0:01:07]} Nxg1 {[%emt 0:00:06]} 43. Bxg1 {[%emt 0:00:10]} dxe4 {[%emt 0:00:02]} 44. Ka5 {[%emt 0:00:09]} f4 {[%emt 0:00:01]} 45. Kxa6 {[%emt 0:00:21]} e3 {[%emt 0:00:02]} 0-1

[Event "POL-chT 2 Liga 2019"]
[Site "Poronin"]
[Date "2019.09.15"]
[Round "9.10"]
[White "Szpar, Milosz"]
[Black "Szoen, Dariusz"]
[Result "0-1"]
[ECO "B53"]
[WhiteElo "2309"]
[BlackElo "2415"]
[Annotator "NA"]
[PlyCount "74"]
[EventDate "2019.09.07"]
[EventType "team-tourn"]
[EventCountry "POL"]
[SourceTitle "playchess.com"]
[Source "ChessBase"]
[SourceQuality "1"]
[TimeControl "40/5400+30:1800+30"]

1. e4 {[%emt 0:00:00]} c5 {[%emt 0:00:00]} 2. Nf3 {[%emt 0:00:01]} d6 {[%emt 0:00:00]} 3. d4 {[%emt 0:00:24]} cxd4 {[%emt 0:00:00]} 4. Qxd4 {[%emt 0:00:40]} Nc6 {[%emt 0:00:00]} 5. Bb5 {[%emt 0:00:13]} Bd7 {[%emt 0:00:00]} 6. Bxc6 {[%emt 0:00:05]} Bxc6 {[%emt 0:00:00]} 7. Nc3 {[%emt 0:00:45]} Nf6 {[%emt 0:00:33]} 8. Bg5 {[%emt 0:00:40]} e6 {[%emt 0:00:11]} 9. O-O-O {[%emt 0:00:23]} Be7 {[%emt 0:00:10]} 10. Qd3 {[%emt 0:00:54]} Qa5 {[%emt 0:08:41]} 11. h4 {[%emt 0:00:36]} h6 {[%emt 0:04:12]} 12. Bd2 {[%emt 0:01:06]} Ng4 {[%emt 0:14:11] B53: Sicilian: 2...d6: Lines with Qxd4} (12... Qa6 13. Nd4 Qxd3 14. cxd3 Ng4 15. Nxc6 bxc6 16. Rdf1 d5 17. Kc2 Bc5 18. Nd1 h5 19. Bc3 Nf6 20. f3 {1-0 (59) Hamdouchi,H (2580)-Navara,D (2727) Brest 2018}) 13. Qe2 {[%emt 0:17:12]} Qc5 {[%emt 0:04:43]} 14. Nd4 {[%emt 0:04:37]} Ne5 $146 {[%emt 0:05:40]} ({Predecessor:} 14... h5 15. Bg5 Bxg5+ 16. hxg5 Qxg5+ 17. Kb1 Ke7 18. Rhf1 Rhd8 19. f4 Qc5 20. f5 {½-½ (42) Skripchenko,A (2400)-Wang,L (2290) Kishinev 1995}) 15. Nb3 {[%emt 0:04:24]} Qc4 $1 {[%emt 0:01:47]} 16. Qe3 {[%emt 0:00:34]} a5 $1 {[%emt 0:04:54]} 17. f4 {[%emt 0:18:32]} Ng4 {[%emt 0:01:40]} 18. Qg3 {[%emt 0:00:19]} h5 {[%emt 0:00:12]} 19. Be1 {[%emt 0:04:26]} a4 {[%emt 0:09:46]} ({Avoid the trap} 19... Bxe4 $2 20. Nd2 $18) 20. Rd4 {[%emt 0:01:27]} Qa6 {[%emt 0:00:51]} 21. Nd2 {[%emt 0:00:16]} b5 {[%emt 0:07:11]} 22. a3 {[%emt 0:07:32]} O-O {[%emt 0:13:17]} 23. Na2 {[%emt 0:02:47]} Qb6 {[%emt 0:00:41]} 24. Nf3 {[%emt 0:02:54] [#]} e5 $1 {[%emt 0:00:50]} 25. Rd1 {[%emt 0:07:51]} Bxe4 {[%emt 0:00:24]} 26. Nc3 $2 {[%emt 0:02:16]} (26. Bb4 Qe3+ 27. Rd2 exf4 28. Qe1) 26... Bb7 {[%emt 0:02:24]} 27. fxe5 {[%emt 0:01:24]} dxe5 {[%emt 0:01:21]} (27... b4 $142 28. axb4 a3 29. bxa3 Rxa3) 28. Nxe5 {[%emt 0:01:54]} b4 {[%emt 0:02:25]} 29. axb4 $19 {[%emt 0:03:36]} (29. Nd7 {was the crucial defense.} Qe3+ 30. Qxe3 Nxe3 31. Rd3 Nxg2 32. axb4) 29... a3 {[%emt 0:00:50]} 30. bxa3 {[%emt 0:03:24]} Rxa3 {[%emt 0:02:19]} 31. Nxg4 {[%emt 0:08:08]} Bxb4 {[%emt 0:02:13]} 32. Rd3 {[%emt 0:01:49]} Ra1+ {[%emt 0:03:04]} 33. Kd2 {[%emt 0:00:41]} hxg4 {[%emt 0:00:16]} 34. Qxg4 {[%emt 0:03:50]} Ba6 {[%emt 0:00:25]} 35. Rhh3 {[%emt 0:00:50]} Bxd3 {[%emt 0:02:17]} 36. Rxd3 {[%emt 0:00:05]} Re8 {[%emt 0:00:07]} 37. Bg3 {[%emt 0:00:46]} Qg1 {[%emt 0:00:25]} 0-1

[Event "POL-chT 2 Liga 2019"]
[Site "Poronin"]
[Date "2019.09.15"]
[Round "9.11"]
[White "Gmaj, Krzysztof"]
[Black "Mika, Tomasz"]
[Result "0-1"]
[ECO "A45"]
[WhiteElo "2120"]
[BlackElo "2136"]
[Annotator "NA"]
[PlyCount "86"]
[EventDate "2019.09.07"]
[EventType "team-tourn"]
[EventCountry "POL"]
[SourceTitle "playchess.com"]
[Source "ChessBase"]
[SourceQuality "1"]
[TimeControl "40/5400+30:1800+30"]

1. d4 {[%emt 0:00:00]} Nf6 {[%emt 0:00:00]} 2. Bf4 {[%emt 0:00:00]} g6 {[%emt 0:00:00]} 3. e3 {[%emt 0:00:00]} Bg7 {[%emt 0:00:00]} 4. h3 {[%emt 0:00:00]} O-O $11 {[%emt 0:00:08]} 5. Nf3 {[%emt 0:00:04]} b6 {[%emt 0:00:42]} 6. Be2 {[%emt 0:01:00]} Bb7 {[%emt 0:00:09]} 7. O-O {[%emt 0:00:09]} d6 {[%emt 0:00:03]} 8. c3 {[%emt 0:02:52]} Nbd7 {[%emt 0:00:19]} 9. a4 {[%emt 0:00:51]} a6 {[%emt 0:00:24]} 10. Nbd2 {[%emt 0:00:16]} Qe8 {[%emt 0:02:56]} 11. Bh2 {[%emt 0:04:30]} e5 {[%emt 0:04:18]} 12. Nc4 {[%emt 0:07:23]} Ne4 {[%emt 0:01:12]} 13. Re1 {[%emt 0:02:32]} Qe7 {[%emt 0:01:59]} 14. Nfd2 {[%emt 0:02:09]} Nxd2 {[%emt 0:02:44]} 15. Nxd2 {[%emt 0:00:31]} Rae8 {[%emt 0:01:13]} 16. Bf3 {[%emt 0:01:00]} e4 {[%emt 0:02:14]} 17. Be2 {[%emt 0:00:23]} a5 {[%emt 0:07:45]} 18. b4 {[%emt 0:02:52]} Ra8 {[%emt 0:05:05]} 19. Nc4 {[%emt 0:03:36]} Ba6 {[%emt 0:01:53]} 20. b5 {[%emt 0:09:08]} Bb7 {[%emt 0:00:13]} 21. Rc1 {[%emt 0:00:07]} f5 {[%emt 0:03:14]} 22. Nd2 {[%emt 0:00:46]} Kh8 {[%emt 0:05:35]} 23. c4 {[%emt 0:00:36]} g5 {[%emt 0:12:04]} 24. f3 {[%emt 0:05:22]} Nf6 {[%emt 0:05:15]} 25. f4 {[%emt 0:09:11]} Bh6 {[%emt 0:02:05]} 26. Rf1 {[%emt 0:04:08]} Rg8 {[%emt 0:03:42]} 27. fxg5 {[%emt 0:07:48]} Bxg5 {[%emt 0:00:23]} 28. Qb3 {[%emt 0:02:11]} Qg7 {[%emt 0:06:47]} 29. Rf2 {[%emt 0:11:17]} Bh4 {[%emt 0:01:09]} 30. Rcf1 {[%emt 0:00:10]} Qg6 {[%emt 0:02:28]} 31. c5 {[%emt 0:00:59]} Rg7 {[%emt 0:07:49]} 32. cxd6 {[%emt 0:01:28]} cxd6 {[%emt 0:00:23]} 33. Bxd6 {[%emt 0:00:56]} Rag8 {[%emt 0:00:11]} 34. Kh1 {[%emt 0:01:43]} Bxf2 {[%emt 0:03:08]} 35. Rxf2 {[%emt 0:00:11]} Ng4 {[%emt 0:01:31]} 36. hxg4 {[%emt 0:06:12]} Qxd6 {[%emt 0:00:12]} 37. Rxf5 {[%emt 0:00:20]} Rg6 {[%emt 0:05:31]} 38. Kg1 {[%emt 0:00:38]} Qg3 {[%emt 0:08:31]} 39. Nf1 {[%emt 0:02:06]} Qe1 {[%emt 0:02:48]} 40. Rh5 {[%emt 0:00:00]} R8g7 {[%emt 0:00:00]} 41. Qc2 {[%emt 0:10:57]} Rf6 {[%emt 0:05:03]} 42. d5 {[%emt 0:00:56]} Rxg4 {[%emt 0:02:20]} 43. Rh2 {[%emt 0:05:33]} Qf2+ {[%emt 0:00:18]} 0-1

[Event "POL-chT 2 Liga 2019"]
[Site "Poronin"]
[Date "2019.09.15"]
[Round "9.12"]
[White "Swiech, Joanna"]
[Black "Kubicka, Anna"]
[Result "1/2-1/2"]
[ECO "A65"]
[WhiteElo "2055"]
[BlackElo "2225"]
[Annotator "NA"]
[PlyCount "65"]
[EventDate "2019.09.07"]
[EventType "team-tourn"]
[EventCountry "POL"]
[SourceTitle "playchess.com"]
[Source "ChessBase"]
[SourceQuality "1"]
[TimeControl "40/5400+30:1800+30"]

1. d4 {[%emt 0:00:00]} Nf6 {[%emt 0:00:00]} 2. c4 {[%emt 0:00:00]} c5 {[%emt 0:00:01]} 3. d5 {[%emt 0:00:00]} e6 {[%emt 0:00:05]} 4. Nc3 {[%emt 0:00:04]} exd5 {[%emt 0:00:07]} 5. cxd5 {[%emt 0:00:06]} d6 {[%emt 0:00:03]} 6. e4 {[%emt 0:00:42]} g6 {[%emt 0:00:08]} 7. Bd3 {[%emt 0:01:00]} Bg7 {[%emt 0:00:05]} 8. f3 {[%emt 0:01:49]} O-O {[%emt 0:00:39]} 9. Nge2 {[%emt 0:00:29]} Nbd7 {[%emt 0:00:06]} 10. O-O {[%emt 0:00:44]} Ne5 {[%emt 0:00:13]} 11. Bc2 {[%emt 0:03:28]} Bd7 {[%emt 0:02:42]} 12. a4 {[%emt 0:00:56]} a6 {[%emt 0:01:00]} 13. b3 {[%emt 0:06:12]} c4 {[%emt 0:19:12]} 14. Be3 {[%emt 0:11:38]} b5 {[%emt 0:08:47]} 15. axb5 {[%emt 0:04:13]} axb5 {[%emt 0:01:53]} 16. b4 {[%emt 0:03:34]} Qc7 {[%emt 0:23:56]} 17. h3 {[%emt 0:17:05]} Rxa1 {[%emt 0:05:50]} 18. Qxa1 {[%emt 0:00:07]} Nd3 {[%emt 0:03:07]} 19. Qb1 {[%emt 0:05:42]} Ne5 {[%emt 0:20:52]} 20. f4 {[%emt 0:18:02]} Nd3 {[%emt 0:00:03]} 21. Bxd3 {[%emt 0:00:10]} cxd3 {[%emt 0:00:02]} 22. Qxd3 {[%emt 0:00:09]} Re8 {[%emt 0:00:09]} 23. Bd4 {[%emt 0:01:50]} Nh5 {[%emt 0:03:48]} 24. Bxg7 {[%emt 0:08:44]} Nxg7 {[%emt 0:00:01]} 25. Nd4 {[%emt 0:00:26]} f5 {[%emt 0:02:47]} 26. Nf3 {[%emt 0:03:15]} Nh5 {[%emt 0:03:10]} 27. Nd4 {[%emt 0:04:09]} Qb6 {[%emt 0:02:03]} 28. Kh2 {[%emt 0:00:14]} Ng7 {[%emt 0:00:49]} 29. Nf3 {[%emt 0:04:03]} Nh5 {[%emt 0:01:14]} 30. Nd4 {[%emt 0:01:05]} Ng7 {[%emt 0:00:15]} 31. Nf3 {[%emt 0:03:25]} Nh5 {[%emt 0:00:07]} 32. Nd4 {[%emt 0:01:11]} Ng7 {[%emt 0:00:26]} 33. Re1 1/2-1/2

[Event "POL-chT 2 Liga 2019"]
[Site "Poronin"]
[Date "2019.09.15"]
[Round "9.13"]
[White "Jedynak, Radoslaw"]
[Black "Wandzik, Wojciech"]
[Result "1/2-1/2"]
[ECO "E15"]
[WhiteElo "2341"]
[BlackElo "2409"]
[Annotator "NA"]
[PlyCount "103"]
[EventDate "2019.09.07"]
[EventType "team-tourn"]
[EventCountry "POL"]
[SourceTitle "playchess.com"]
[Source "ChessBase"]
[SourceQuality "1"]
[TimeControl "40/5400+30:1800+30"]

1. d4 {[%emt 0:01:01]} Nf6 {[%emt 0:00:00]} 2. Nf3 {[%emt 0:00:43]} e6 {[%emt 0:00:00]} 3. c4 {[%emt 0:00:17]} b6 {[%emt 0:02:40]} 4. g3 {[%emt 0:00:49]} Bb4+ {[%emt 0:02:07]} 5. Bd2 {[%emt 0:01:10]} a5 {[%emt 0:00:24]} 6. Bg2 {[%emt 0:00:39]} Bb7 {[%emt 0:02:08]} 7. O-O {[%emt 0:00:31]} O-O {[%emt 0:00:03]} 8. Nc3 {[%emt 0:03:02]} d6 {[%emt 0:04:48]} 9. Qc2 {[%emt 0:07:04]} Nbd7 {[%emt 0:02:33]} 10. Rfe1 {[%emt 0:01:16] E16: Queen's Indian: 4 g3 Bb7 5 Bg2 Bb4+} Bxc3 {[%emt 0:09:47]} 11. Bxc3 {[%emt 0:00:38]} Be4 {[%emt 0:00:42]} 12. Qc1 {[%emt 0:06:19]} Qc8 $146 {[%emt 0:00:55]} ({Predecessor:} 12... c6 13. Qf4 Qe7 14. Bh3 b5 15. b3 {½-½ (15) Banikas,H (2593)-Kryvoruchko,Y (2652) Paleochora 2011}) 13. Qf4 {[%emt 0:12:06]} Qb7 {[%emt 0:01:03]} 14. Bf1 {[%emt 0:03:33]} Rfe8 {[%emt 0:15:57]} 15. Nd2 {[%emt 0:20:29]} e5 {[%emt 0:00:08]} 16. dxe5 {[%emt 0:08:16]} dxe5 {[%emt 0:00:21]} 17. Qh4 {[%emt 0:02:27]} Bc6 {[%emt 0:00:21]} 18. Rad1 {[%emt 0:10:07]} Nf8 {[%emt 0:01:54]} 19. Nf3 {[%emt 0:00:40]} Ng6 {[%emt 0:01:12]} 20. Qg5 {[%emt 0:02:03]} Ne4 {[%emt 0:00:40]} 21. Qc1 {[%emt 0:01:33]} f6 {[%emt 0:00:35]} 22. h4 {[%emt 0:04:16]} Nf8 {[%emt 0:04:04]} 23. b3 {[%emt 0:03:42]} Qc8 {[%emt 0:03:02]} 24. Bg2 {[%emt 0:03:07]} Qf5 {[%emt 0:01:19]} 25. Qe3 {[%emt 0:00:49]} Nxc3 {[%emt 0:06:47]} 26. Qxc3 {[%emt 0:00:02]} Ne6 {[%emt 0:00:01]} 27. a3 {[%emt 0:03:12]} Rad8 {[%emt 0:00:53]} 28. b4 {[%emt 0:00:53]} axb4 {[%emt 0:02:09]} 29. axb4 $11 {[%emt 0:00:01]} Qe4 {[%emt 0:00:54]} 30. e3 {[%emt 0:01:35]} Rxd1 {[%emt 0:05:22]} 31. Rxd1 {[%emt 0:00:01]} Qg4 {[%emt 0:00:01]} 32. e4 {[%emt 0:00:17]} Bxe4 {[%emt 0:00:01]} 33. Re1 {[%emt 0:01:23]} Bg6 {[%emt 0:11:14]} 34. Kh2 {[%emt 0:00:22]} Qf5 {[%emt 0:06:35]} 35. Rd1 {[%emt 0:01:08]} Bh5 {[%emt 0:09:34]} 36. Rd2 {[%emt 0:01:18]} Kh8 {[%emt 0:00:14]} 37. c5 {[%emt 0:00:35]} bxc5 {[%emt 0:02:48]} 38. bxc5 {[%emt 0:00:02]} e4 {[%emt 0:00:01]} 39. Nd4 {[%emt 0:00:44]} Qxc5 {[%emt 0:00:11]} 40. Qxc5 {[%emt 0:00:00]} Nxc5 {[%emt 0:00:00]} 41. Nb5 {[%emt 0:03:50]} c6 {[%emt 0:05:37]} 42. Nd6 {[%emt 0:16:28]} Re6 {[%emt 0:08:55]} 43. Bh3 {[%emt 0:02:34]} Re5 {[%emt 0:01:51]} 44. Rb2 {[%emt 0:00:12]} g5 {[%emt 0:05:08]} 45. Rb8+ {[%emt 0:04:37]} Kg7 {[%emt 0:00:05]} 46. Nf5+ {[%emt 0:00:05]} Kf7 {[%emt 0:00:23]} 47. Nd6+ {[%emt 0:00:54]} Ke7 {[%emt 0:01:14]} 48. Nf5+ {[%emt 0:00:45]} Kf7 {[%emt 0:10:17]} 49. Nd6+ {[%emt 0:00:03]} Kg7 {[%emt 0:00:04]} 50. Nf5+ {[%emt 0:00:16]} Kf7 {[%emt 0:03:32]} 51. Nd6+ {[%emt 0:00:24]} Kg7 {[%emt 0:00:04]} 52. Nf5+ {[%emt 0:00:05]} 1/2-1/2